Cogmind - Beta 12 X2 @@@ ROGUE MODE // 2022.09.11 @ 12:37:19 Player: ArabianSandBoa Result: Self-destructed Performance ------------- Evolutions (1) 500 Regions Visited (3) 600 Robots Destroyed (73) 365 Value Destroyed (1658) 1658 Prototype IDs (9) 180 Alien Tech Used (0) 0 Bonus (114) 114 TOTAL SCORE: 3417 Bonus ------- High Alert Combat Kills 166 Friendly Fire -52 Cogmind --------- Core Integrity 55/400 Matter 300/300 Energy 100/100 System Corruption 11% Temperature Cool (93) Movement Core (350) Ox6 Location -9/Storage Parts ------- > --- POWER (1) -------- (None) > --- PROPULSION (3) --- (None) > --- UTILITY (3) ------ Large Storage Unit Hacking Suite Hacking Suite > --- WEAPON (2) ------- (None) > --- INVENTORY (15) --- Cooled Ion Engine Cooled Ion Engine Cryofiber Web Cooling System Large Storage Unit High-capacity Battery (250) Hacking Suite Faulty Heavy EM Shotgun Faulty Heavy EM Shotgun EMP Blaster Heavy Flail Peak State ------------ > --- POWER ------------ Cooled Ion Engine > --- PROPULSION ------- Wheel Wheel Wheel > --- UTILITY ---------- Large Storage Unit Hacking Suite Hacking Suite > --- WEAPON ----------- Improved Medium Laser Improved Medium Laser > --- INVENTORY -------- Cooled Ion Engine Cooled Ion Engine Cooled Ion Engine Wheel Cryofiber Web Large Storage Unit High-capacity Battery Heavy EM Shotgun Heavy EM Shotgun Heavy EM Shotgun Improved Medium Laser Shotgun Grenade Launcher Heavy Flail [Rating: 22] Favorites ----------- Power Cooled Ion Engine Engine Cooled Ion Engine Propulsion Wheel Wheel Wheel Utility Hacking Suite Device Sensor Array Storage Large Storage Unit Processor Signal Interpreter Hackware Hacking Suite Protection Light Armor Plating Weapon Improved Medium Laser Energy Gun Improved Medium Laser Energy Cannon Light EM Pulse Cannon Ballistic Gun Light Assault Rifle Launcher Grenade Launcher Build | -11 -10 -9 -9 ------- Run | Scr Mat Mat Sto Slots Evolved 2 | . . 2 . Power . | . . . . Propulsion 1 | . . 1 . Utility 1 | . . 1 . Weapon . | . . . . Parts Attached 51 | 7 7 29 8 Power 8 | 1 . 4 3 Engine 8 | 1 . 4 3 Core . | . . . . Reactor . | . . . . Propulsion 13 | 2 2 9 . Treads . | . . . . Leg . | . . . . Wheel 13 | 2 2 9 . Hover . | . . . . Flight . | . . . . Utility 10 | 2 3 5 . Device 3 | 1 1 1 . Storage 3 | 1 2 . . Processor 1 | . . 1 . Hackware 2 | . . 2 . Protection 1 | . . 1 . Artifact . | . . . . Weapon 20 | 2 2 11 5 Energy Gun 17 | 1 1 10 5 Energy Cannon 1 | . . 1 . Ballistic Gun 1 | 1 . . . Ballistic Cannon . | . . . . Launcher 1 | . 1 . . Special Weapon . | . . . . Impact Weapon . | . . . . Slashing Weapon . | . . . . Piercing Weapon . | . . . . Special Melee Weapon . | . . . . Unidentified Prototypes 4 | . . 4 . Corrupted Parts 2 | . . 2 . System Corruption 11 | . . 11 . Parts Lost 16 | . . 8 8 Power 2 | . . 1 1 Propulsion 6 | . . 4 2 Utility . | . . . . Weapon 8 | . . 3 5 Highest Loss Streak 8 | . . 5 8 To Critical Strikes . | . . . . Average Slot Usage (%) 96 | . 99 97 87 Engine 11 | . 14 10 11 Wheel 28 | . 28 30 21 Device 5 | . 13 4 . Storage 11 | . 14 11 11 Processor 1 | . . 2 . Hackware 13 | . . 13 22 Energy Gun 20 | . 14 20 21 Launcher 1 | . 7 . . Naked Turns . | . . . . Heaviest Build 37 | 14 31 37 34 Greatest Support 36 | 26 26 36 26 Greatest Overweight (x) 3 | . 1 3 1 Average Overweight (x) . | . . 1 . Largest Inventory Capacity 15 | 8 15 15 15 Average Capacity 13 | 7 8 15 15 Most Carried 15 | 8 8 15 15 Average Carried 12 | 3 7 13 14 Final Capacity 15 | 8 15 15 15 Final Carried 15 | 8 8 15 11 Class Distribution -------------------- 48% | Scavenger-Mutant 34% | Mutant 16% | Hacker-Mutant Dominant Class ---------------- Mutant | -10/Materials Scavenger-Mutant | -9/Materials Hacker-Mutant | -9/Storage Resources | -11 -10 -9 -9 ----------- Run | Scr Mat Mat Sto Matter Collected 893 | 262 43 532 56 Remotely . | . . . . Salvage Created 2893 | 120 201 2324 248 Parts 180 | 10 16 137 17 Haulers Intercepted 8 | . 1 6 1 Recyclers Shooed 2 | 1 . 1 . Parts Field Recycled . | . . . . Retrieved Matter . | . . . . Parts Self-Destructed . | . . . . Prevented . | . . . . Kills | -11 -10 -9 -9 ------- Run | Scr Mat Mat Sto Combat Hostiles Destroyed 37 | . 5 30 2 Guns 31 | . 2 27 2 AOE 4 | . 3 1 . Classes Destroyed 12 | 2 6 4 . Worker 4 | . 1 3 . Builder 3 | . 1 2 . Tunneler 4 | 2 1 1 . Hauler 8 | . 1 6 1 Recycler 6 | 1 . 4 1 Operator 5 | . 1 3 1 Watcher 6 | . 2 4 . Swarmer 3 | . . 3 . Grunt 23 | . 5 18 . Brawler 1 | . . 1 . Duelist 1 | . . 1 . Sentry 9 | . . 7 2 Best Kill Streak 18 | 2 8 18 3 Combat Bots Only 6 | . 3 6 1 Max Kills in Single Turn 3 | 1 2 3 1 Gunslinging 1 | . . 1 . Exploded 1 | . 1 1 . Melee . | . . . . Uniques/NPCs Destroyed . | . . . . Combat | -11 -10 -9 -9 -------- Run | Scr Mat Mat Sto Damage Taken 1646 | . 107 995 544 Core 367 | . 22 213 132 Absorbed by Shields . | . . . . Core Remaining (%) 95 | 100 91 . . Volleys Fired 139 | 7 23 96 13 Largest 2 | 2 2 2 2 Hottest 112 | 70 70 112 112 Shots Fired 258 | 14 29 191 24 Gun 236 | 14 14 184 24 Cannon 7 | . . 7 . Launcher 15 | . 15 . . Special . | . . . . Kinetic 13 | 7 6 . . Thermal 124 | 7 8 98 11 Explosive 15 | . 15 . . Electromagnetic 106 | . . 93 13 Robot Hit Streak 17 | 6 11 13 17 Robot Miss Streak 6 | 1 3 6 1 Penetration Max . | . . . . Secondary Targets 4 | . . 4 . Max Gunslinging Chain 1 | . . 1 . Shots Hit Robots 191 | 10 14 146 21 Core Hits 103 | 4 22 68 9 Critical Kills . | . . . . Critical Parts Destroyed . | . . . . Critical Strikes 8 | . . 7 1 Burn 8 | . . 7 1 Melee Attacks . | . . . . Impact . | . . . . Slashing . | . . . . Piercing . | . . . . Sneak Attacks . | . . . . Combat Hostiles . | . . . . Follow-up Attacks . | . . . . Damage Inflicted 4754 | 110 1022 3293 329 Guns 3263 | 110 80 2744 329 Cannons 167 | . . 167 . Explosions 1324 | . 942 382 . Melee . | . . . . Ramming . | . . . . Kinetic 52 | 34 18 . . Thermal 1969 | 76 62 1652 179 Explosive 942 | . 942 . . Electromagnetic 1791 | . . 1641 150 Impact . | . . . . Slashing . | . . . . Piercing . | . . . . Highest Corruption 11 | . 2 11 11 Average Corruption 10 | . 2 10 11 Corruption Purged . | . . . . Corruption Blocked . | . . . . Effects 57 | . . 43 14 Message Errors 16 | . . 10 6 Matter Fused 11 | . . 9 2 Heat Flow Errors 9 | . . 5 4 Energy Discharges 5 | . . 5 . Data Loss (minor) 8 | . . 7 1 Data Loss (major) 1 | . . 1 . Misfires 2 | . . 2 . Alerts 1 | . . 1 . Weapon Failures 4 | . . 3 1 Overload Shots . | . . . . Overflow Damage 105 | . 95 10 . Projectiles . | . . . . Explosions 105 | . 95 10 . Melee . | . . . . Knockbacks . | . . . . Impact . | . . . . Kinetic . | . . . . Secondary . | . . . . Self-Inflicted Damage 28 | . . 28 . Shots 1 | . . 1 . Rammed . | . . . . Targets Rammed . | . . . . Kicked . | . . . . Crushed . | . . . . Highest Temperature 299 | 80 88 299 189 Average Temperature 78 | 37 26 86 58 Received Heat Transfer 624 | . 60 435 129 Effects 1 | . . 1 . Energy Bleed 1 | . . 1 . Siege Activations . | . . . . Robots Corrupted 4 | . . 4 . Combat Hostiles 2 | . . 2 . Parts Fried 16 | . . 16 . Impact Corruptions . | . . . . Robots Melted . | . . . . Combat Hostiles . | . . . . Parts Melted 7 | . . 7 . Heat Transferred 4670 | 222 185 3819 444 Parts Sabotaged . | . . . . Parts Stolen . | . . . . Parts Stripped . | . . . . Power Chain Reactions 6 | . . 6 . Missiles Intercepted . | . . . . Alert | -11 -10 -9 -9 ------- Run | Scr Mat Mat Sto Peak Influence 722 | 15 462 722 388 Initial 218 | . 9 131 218 Average 338 | 5 194 385 311 Maximum Alert Level 3 | . 2 3 1 Low Security (%) 21 | 100 54 15 . Level 1 40 | . 32 32 100 Level 2 37 | . 12 50 . Level 3 . | . . . . Level 4 . | . . . . Level 5 . | . . . . High Security . | . . . . Max Security . | . . . . Squads Dispatched 9 | . 3 5 1 Investigation 6 | . 1 5 . Extermination . | . . . . Reinforcement 3 | . 2 . 1 Assault . | . . . . Garrison . | . . . . Intercept . | . . . . Searches Triggered . | . . . . Construction Impeded . | . . . . Haulers Reinforced . | . . . . Active Scanning Responses . | . . . . Cargo Convoy Interrupts . | . . . . Stealth | -11 -10 -9 -9 --------- Run | Scr Mat Mat Sto Distress Signals 3 | . . 2 1 Communications Jammed . | . . . . Distress Signals . | . . . . Times Spotted 68 | . 10 47 11 Peak Tracking Total 9 | . 3 8 9 Tactical Retreats 3 | . . 3 . Traps | -11 -10 -9 -9 ------- Run | Scr Mat Mat Sto Traps Triggered 2 | . 2 . . Indirectly . | . . . . Trap Hack Attempts . | . . . . Triggered . | . . . . Disarmed . | . . . . Reprogrammed . | . . . . Reused . | . . . . Traps Extracted . | . . . . Installed . | . . . . Triggered . | . . . . Machines | -11 -10 -9 -9 ---------- Run | Scr Mat Mat Sto Machines Disabled 6 | . 1 4 1 Max in Single Turn 2 | . 1 2 1 Machines Sabotaged . | . . . . Overloaded Fab Kills . | . . . . Hacking | -11 -10 -9 -9 --------- Run | Scr Mat Mat Sto Machines Accessed 17 | . 3 12 2 Terminals 14 | . 2 10 2 Fabricators . | . . . . Repair Stations . | . . . . Recycling Units 2 | . 1 1 . Scanalyzers 1 | . . 1 . Garrison Access . | . . . . Total Hacks 56 | . 6 40 10 Successful 36 | . 3 24 9 Failed 19 | . 3 15 1 Catastrophic 2 | . . 2 . Database Lockouts 1 | . . 1 . Manual 41 | . 4 27 10 Terminals 52 | . 4 38 10 Fabricators . | . . . . Repair Stations . | . . . . Recycling Units 3 | . 2 1 . Scanalyzers 1 | . . 1 . Garrison Access . | . . . . Terminal Hacks 22 | . 2 13 7 Robot Analysis 7 | . . 3 4 Prototype ID Bank 3 | . . 2 1 Unreport Threat 5 | . 1 4 . Locate Traps 2 | . . 1 1 Hauler Manifests 2 | . . 1 1 Zone Layout 3 | . 1 2 . Fabricator Hacks . | . . . . Repair Station Hacks . | . . . . Recycling Unit Hacks 1 | . 1 . . Retrieve Components 1 | . 1 . . Scanalyzer . | . . . . Garrison Access Hacks . | . . . . Unauthorized Hacks 13 | . . 11 2 Terminals 11 | . . 9 2 Assimilate 2 | . . 2 . Botnet 9 | . . 7 2 Fabricators . | . . . . Repair Stations . | . . . . Recycling Units 1 | . . 1 . Tunnel 1 | . . 1 . Scanalyzers 1 | . . 1 . Extract 1 | . . 1 . Garrison Access . | . . . . Data Cores Recovered 2 | . . 2 . Used . | . . . . Hacking Detections 15 | . 3 10 2 Full Trace Events 3 | . . 3 . Feedback Events . | . . . . Feedback Blocked . | . . . . Robot Schematics Acquired . | . . . . Robots Built . | . . . . Authchips . | . . . . Time . | . . . . Total Robot Build Rating . | . . . . Part Schematics Acquired 6 | . . 6 . Parts Built . | . . . . Authchips . | . . . . Time . | . . . . Total Part Build Rating . | . . . . Parts Repaired . | . . . . Time . | . . . . Parts Recycled . | . . . . Recycled Matter . | . . . . Retrieved Matter . | . . . . Retrieved Components . | . . . . Parts Scanalyzed . | . . . . Part Schematics Acquired . | . . . . Parts Damaged . | . . . . Bothacking | -11 -10 -9 -9 ------------ Run | Scr Mat Mat Sto Used RIF Installer . | . . . . Robots Hacked . | . . . . Non-combat . | . . . . Combat . | . . . . Robot Hacks Applied . | . . . . Relay Couplers Released . | . . . . Fabnet Peak Effective % . | . . . . Robots Rewired . | . . . . Allies Hacked . | . . . . Hacks Repelled . | . . . . Allies | -11 -10 -9 -9 -------- Run | Scr Mat Mat Sto Total Allies 1 | . . 1 . Largest Group 1 | . . 1 . Highest-Rated Group 10 | . . 10 . Highest-Rated Ally 10 | . . 10 . Total Orders . | . . . . Ally Attacks . | . . . . Total Damage . | . . . . Kills . | . . . . Allies Corrupted . | . . . . Allies Melted . | . . . . Intel | -11 -10 -9 -9 ------- Run | Scr Mat Mat Sto Robot Analysis Total 7 | . . 3 4 Derelict Logs Recovered . | . . . . Drone Launches . | . . . . Drone Recoveries . | . . . . Exploration | -11 -10 -9 -9 ------------- Run | Scr Mat Mat Sto Turns Passed 2315 | 78 298 1630 309 Spaces Moved 1538 | 46 231 1067 194 Core 1 | 1 . . . Treads . | . . . . Legs . | . . . . Wheels 1537 | 45 231 1067 194 Hover . | . . . . Flight . | . . . . Fastest Speed 50 | 50 80 80 90 Average Speed 95 | 86 85 95 104 Slowest Speed 125 | 90 95 125 105 Overloaded Moves . | . . . . Propulsion Burnouts . | . . . . Robots Hopped . | . . . . Cave-ins Triggered . | . . . . Exploration Rate (%) 46 | 4 53 87 42 Regions Visited 3 Branch Regions 1 Pre-discovered Areas 1 | . . 1 . Known Exits Taken . | . . . . Unknown Exits Taken 3 | 1 1 1 . Scrap Searched . | . . . . Spaces Dug 15 | . 15 . . Terrain Destroyed 116 | . 98 18 . Melee . | . . . . Projectile . | . . . . AOE 116 | . 98 18 . Terrain Rammed . | . . . . Walls Destroyed . | . . . . Machines Disabled . | . . . . Actions | -11 -10 -9 -9 --------- Run | Scr Mat Mat Sto Total 2133 | 67 304 1487 275 Wait 325 | . 31 246 48 Move 1535 | 45 230 1066 194 Hop . | . . . . Pick Up 36 | 8 4 20 4 Fast Attach 26 | 7 2 14 3 Attach 12 | . . 9 3 Detach 11 | . 1 10 . Swap 14 | . 5 7 2 Drop 35 | . 8 19 8 Fire 139 | 7 23 96 13 Melee . | . . . . Ram . | . . . . Kick . | . . . . Crush . | . . . . Escape Stasis . | . . . . Rewire . | . . . . Trap . | . . . . Miscellaneous . | . . . . Route ------- -11/Scrapyard -10/Materials -9/Materials (discovered 5 exits: *Mat x3 / [*Min] / *Sto) -9/Storage (discovered 1 exit: [*Rec]) History --------- Turn | Location | Event 2 | -11/Scrapyard | Met Revision 17 9 | -11/Scrapyard | Discovered new exit (range 15) 79 | -11/Scrapyard | Entered Materials 319 | -10/Materials | Build established: Mutant 332 | -10/Materials | Discovered new exit (range 16) 377 | -10/Materials | Entered another Materials area 377 | -9/Materials | Evolved 2 slots: Propulsion x1, Utility x1 606 | -9/Materials | Discovered new exit (range 13) 807 | -9/Materials | Lost 5 parts (1p3n1w) 1000 | -9/Materials | System corruption reached 10% 1096 | -9/Materials | Build established: Scavenger-Mutant 1195 | -9/Materials | Discovered new exit (range 16) 1232 | -9/Materials | Identified exit to Materials 1368 | -9/Materials | Discovered new exit (range 15) 1581 | -9/Materials | Discovered exit to Materials (range 11) 1829 | -9/Materials | Core integrity fell below 50% 1842 | -9/Materials | Discovered exit to Materials (range 7) 1845 | -9/Materials | Central database locked down 2007 | -9/Materials | Entered Storage 2215 | -9/Storage | Used back door to open Recycling access 2215 | -9/Storage | Discovered new exit (range 5) 2226 | -9/Storage | Build established: Hacker-Mutant 2315 | -9/Storage | Core integrity fell below 20% 2316 | -9/Storage | Self-destructed Last Messages --------------- 02215_ Connecting with Door Terminal... 02215_ Access granted. >>\\IAMDERELICT Access granted. 02215_ EXIT=FOUND 02221_ JHOLCBDKQZMLZSKEJDZ0BLXZQQ9>MQ KL 02258_ System corrupted: Heat flow error (+113). 02282_ MN<0TR4F YE